[Event "5th Sharjah Masters 2022"]
[Site "Sharjah"]
[Date "2022.05.23"]
[Round "3.8"]
[White "Tabatabaei, M. Amin"]
[Black "Moroni, Luca Jr"]
[Result "1-0"]
[ECO "D30"]
[WhiteElo "2650"]
[BlackElo "2581"]
[Annotator "TA"]
[PlyCount "101"]
[EventDate "2022.05.21"]
[EventType "swiss"]
[EventCountry "UAE"]
[SourceTitle "playchess.com"]
[Source "ChessBase"]
[SourceQuality "1"]
[TimeControl "5400+30"]

{[%evp 16,101,37,30,58,27,13,18,14,11,0,-19,-8,-6,0,0,54,50,52,68,80,85,75,79,76,11,27,22,17,9,50,34,28,0,0,0,0,0,0,0,0,-27,0,0,0,0,22,31,17,38,27,22,20,11,34,26,47,20,108,108,102,95,91,99,98,98,201,111,112,98,94,36,36,28,558,551,575,565,565,557,540,540,29981,29982,29997,29998,29998,29999]} 1. d4 {[%emt 0:00:03]} d5 {[%emt 0:00:04]} 2. c4 {[%emt 0:00:08]} e6 {[%emt 0:00:05]} 3. Nf3 {[%emt 0:00:20]} c5 {[%emt 0:00:22]} 4. cxd5 {[%emt 0:00:11]} exd5 {[%emt 0:00:05]} 5. g3 {[%emt 0:00:12]} Nf6 {[%emt 0:01:05]} 6. Bg2 {[%emt 0:00:15]} Nc6 {[%emt 0:00:40]} 7. O-O {[%emt 0:00:20]} Be7 {[%emt 0:01:13]} 8. dxc5 {[%emt 0:01:13]} Bxc5 {[%emt 0:00:06]} 9. a3 {[%emt 0:00:24]} a5 {[%emt 0:12:01] D30: Queen's Gambit Declined: Systems without Nc3.} 10. b3 $5 {[%emt 0:00:39][%mdl 4] A promising side line.} O-O {[%emt 0:01:58]} 11. Nc3 {[%emt 0:04:48]} d4 {[%emt 0:11:28] The position is equal.} 12. Nb5 {[%emt 0:00:57] [#]} Qb6 $146 {[%emt 0:01:18]} ({Predecessor:} 12... Bf5 13. Nh4 Be4 14. Bxe4 Nxe4 15. Nf3 Qd5 16. Qd3 Nc3 17. Nxc3 dxc3 18. e3 Qxb3 {0-1 (27) Saint Leger,S (1610)-Verat Fayolle,C (1881) Montigny le Bretonneux 2019}) 13. a4 {[%emt 0:00:02]} Be6 {[%emt 0:04:53]} 14. Bb2 {[%emt 0:00:33]} Rfd8 {[%emt 0:06:03]} 15. Nd2 {[%emt 0:12:30] Against Ne4} Nb4 {[%emt 0:11:28]} (15... Ng4 $11) 16. Rc1 $1 $14 {[%emt 0:04:36]} Rac8 {[%emt 0:03:19]} 17. Nc4 {[%emt 0:00:29]} Bxc4 {[%emt 0:04:31]} 18. Rxc4 {[%emt 0:02:15][%cal Rb2d4]} d3 {[%emt 0:03:37][%cal Oc5f2]} 19. e3 {[%emt 0:13:01]} Be7 {[%emt 0:01:12]} 20. Qf3 {[%emt 0:02:56]} (20. Na3 $16) 20... Rxc4 $11 {[%emt 0:06:25]} 21. bxc4 {[%emt 0:00:26]} Nd7 {[%emt 0:03:45]} 22. Bd4 {[%emt 0:03:40] A strong pair of Bishops.} Nc5 {[%emt 0:00:49]} 23. Nc3 {[%emt 0:04:31]} Qe6 {[%emt 0:05:14]} 24. Nd5 {[%emt 0:01:53]} (24. Bxc5 $5 Bxc5 25. Qxb7 $11 (25. Nd5 Qd7 $11)) 24... Nxd5 {[%emt 0:01:30]} 25. cxd5 {[%emt 0:01:03]} Qd7 {[%emt 0:00:04]} 26. Qh5 {[%emt 0:14:29]} Bf8 {[%emt 0:02:59]} 27. Qh4 {[%emt 0:16:43]} Be7 {[%emt 0:00:41]} 28. Qh5 {[%emt 0:00:51]} Bf8 {[%emt 0:00:02]} (28... h6 $5 {[%cal Rc5a4]}) 29. Qh4 {[%emt 0:01:42]} Be7 {[%emt 0:00:03]} 30. Qf4 {[%emt 0:02:43]} Qxa4 {[%emt 0:04:04]} 31. Qe5 {[%emt 0:02:46][%csl Gd4][%cal Re5g7] [#]} Bf6 {[%emt 0:00:05]} 32. Qc7 {[%emt 0:00:01]} Na6 {[%emt 0:00:21]} 33. Qxb7 {[%emt 0:01:00]} Bxd4 {[%emt 0:00:13]} 34. exd4 $40 {[%emt 0:00:29][%mdl 128] White is up to no good.} Nb4 {[%emt 0:00:36] Strongly threatening ...d2.} (34... d2 $5 35. Bf3 Nb4 $11) 35. Qc7 {[%emt 0:01:11]} Rf8 {[%emt 0:11:57] And now ...d2 would win.} 36. d6 $1 {[%emt 0:00:31] d7 is the strong threat.} d2 {[%emt 0:00:12]} (36... Na6 $1 $11 37. Qc3 Qd7) 37. d7 $16 {[%emt 0:02:36]} d1=Q {[%emt 0:00:30]} 38. d8=Q {[%emt 0:00:02] White threatens Qcc8 and mate.} Qe2 {[%emt 0:01:36]} 39. Qxa5 {[%emt 0:02:05]} Rxd8 {[%emt 0:02:40]} 40. Qxa4 {[%emt 0:00:02]} Nc2 {[%emt 0:00:33]} (40... Qe7 $16 {was worth a try.}) 41. Rc1 {[%emt 0:01:05]} ({Better is} 41. d5 $18 g6 42. Qh4) 41... Ne1 {[%emt 0:00:35] [#]} 42. Qd7 $3 {[%emt 0:02:32][%mdl 512]} Rf8 {[%emt 0:00:01]} 43. Qf5 {[%emt 0:02:30]} (43. d5 $16) 43... Qd2 $1 $14 {[%emt 0:00:58][%csl LRc1,LRd4]} 44. Rc8 {[%emt 0:00:08]} Qxd4 $2 {[%emt 0:00:33][%mdl 8192] A mistake that costs the game.} (44... g6 $1 $11 {and Black stays safe.} 45. Rxf8+ Kxf8 46. Qc5+ Kg8) 45. Bd5 $18 {[%emt 0:00:19] Rxf8+ would kill now.} Qf6 {[%emt 0:00:27]} 46. Rxf8+ {[%emt 0:00:28]} Kxf8 {[%emt 0:00:01]} 47. Qc8+ {[%emt 0:01:22]} Ke7 {[%emt 0:00:01]} 48. Qc7+ {[%emt 0:00:08]} Ke8 {[%emt 0:00:38]} 49. Bc6+ {[%emt 0:00:09] White mates.} Kf8 {[%emt 0:00:01]} 50. Qc8+ {[%emt 0:00:07]} Ke7 {[%emt 0:00:03]} 51. Qd7+ {[%emt 0:00:05] Weighted Error Value: White=0.10 (very precise) /Black=0.40} 1-0

[Event "5th Sharjah Masters 2022"]
[Site "Sharjah"]
[Date "2022.05.23"]
[Round "3.9"]
[White "Aryan Chopra"]
[Black "Abasov, Nijat"]
[Result "1/2-1/2"]
[ECO "C42"]
[WhiteElo "2609"]
[BlackElo "2635"]
[Annotator "TA"]
[PlyCount "88"]
[EventDate "2022.05.21"]
[EventType "swiss"]
[EventCountry "UAE"]
[SourceTitle "playchess.com"]
[Source "ChessBase"]
[SourceQuality "1"]
[TimeControl "5400+30"]

{[%evp 16,88,21,14,26,22,22,23,16,25,25,23,25,25,25,27,25,11,9,15,16,13,16,20,25,31,34,33,41,20,15,9,10,9,7,6,48,50,53,43,96,65,110,80,130,119,126,76,90,93,131,137,181,178,187,156,153,120,125,104,117,102,145,136,101,64,58,8,8,8,8,8,8,8,15]} 1. e4 {[%emt 0:00:04]} e5 {[%emt 0:00:20]} 2. Nf3 {[%emt 0:00:06]} Nf6 {[%emt 0:00:07]} 3. Nxe5 {[%emt 0:00:48]} d6 {[%emt 0:00:05]} 4. Nf3 {[%emt 0:00:04]} Nxe4 {[%emt 0:00:09]} 5. d4 {[%emt 0:00:04]} d5 {[%emt 0:00:08]} 6. Bd3 {[%emt 0:00:05]} Bd6 {[%emt 0:00:13]} 7. O-O {[%emt 0:00:24]} O-O {[%emt 0:00:05]} 8. c4 {[%emt 0:00:08]} c6 {[%emt 0:00:05]} 9. Qc2 {[%emt 0:00:36]} h6 {[%emt 0:01:22] is the new trend. C42: Petroff Defence: 3 Nxe5 and unusual White 3rd moves.} 10. Re1 {[%emt 0:04:38]} Be6 {[%emt 0:07:34]} 11. cxd5 {[%emt 0:04:06]} cxd5 {[%emt 0:00:18] White has an edge.} 12. Bxe4 {[%emt 0:00:11]} dxe4 {[%emt 0:00:13]} 13. Qxe4 {[%emt 0:00:05]} Bd5 {[%emt 0:06:26] This bishop pair is nice.} 14. Qg4 {[%emt 0:04:16] Bxh6 is the strong threat.} Qd7 {[%emt 0:00:58]} 15. Qxd7 {[%emt 0:01:04]} Nxd7 {[%emt 0:00:15]} 16. Nc3 {[%emt 0:00:09]} Bxf3 {[%emt 0:01:14]} 17. gxf3 {[%emt 0:00:04]} Rfd8 {[%emt 0:03:04]} 18. Be3 {[%emt 0:06:19] [#]} Rac8 $146 {[%emt 0:09:09]} ({Predecessor:} 18... Nf8 19. Red1 Ng6 20. Rac1 Rac8 21. Ne4 Rxc1 22. Rxc1 Bb8 23. Nc5 b6 24. Nb7 Rf8 {1-0 (51) Abdusattorov,N (2644)-Sadhwani,R (2522) Moscow 2020}) 19. Rac1 {[%emt 0:02:45]} Nb6 {[%emt 0:01:20]} 20. Ne4 {[%emt 0:01:43]} Rxc1 {[%emt 0:00:25]} 21. Rxc1 {[%emt 0:00:10]} Nd5 {[%emt 0:00:38]} 22. Nc3 {[%emt 0:09:28]} Ne7 {[%emt 0:04:07]} 23. h3 {[%emt 0:13:02]} f6 {[%emt 0:05:20]} 24. Kf1 {[%emt 0:02:01]} Kf7 {[%emt 0:01:06]} 25. Ne4 {[%emt 0:07:24]} Nd5 {[%emt 0:01:14] [#]} 26. Rc8 $1 {[%emt 0:03:31]} Rd7 {[%emt 0:02:07]} 27. Ke2 {[%emt 0:01:53]} b6 {[%emt 0:02:13]} (27... a6 $14) 28. Kd3 {[%emt 0:02:10]} ({Don't take} 28. Nxd6+ Rxd6 29. Kd3 Rd7 $14) 28... Kg6 {[%emt 0:06:17]} 29. Ra8 {[%emt 0:06:03]} Bh2 {[%emt 0:04:15]} (29... Nf4+ $142 30. Bxf4 Bxf4) 30. Nc3 $16 {[%emt 0:01:35] Strongly threatening Nxd5.} Ne7 {[%emt 0:01:29] [#]} 31. Ke2 {[%emt 0:05:53]} (31. Nb5 $142 $1) 31... Kf5 {[%emt 0:02:41]} 32. a4 {[%emt 0:03:19]} Ke6 {[%emt 0:12:54]} 33. Kd3 {[%emt 0:02:27]} f5 {[%emt 0:08:53] [#]} 34. f4 $1 {[%emt 0:03:36]} Ng6 {[%emt 0:00:06]} 35. Ne2 {[%emt 0:01:44]} Ne7 {[%emt 0:00:46]} 36. Kd2 {[%emt 0:03:09]} Nd5 {[%emt 0:00:33][%cal Og7g5]} 37. Ke1 {[%emt 0:05:14]} g5 {[%emt 0:00:29]} 38. Rh8 {[%emt 0:01:37]} Nxf4 {[%emt 0:01:13]} 39. Rxh6+ {[%emt 0:00:43]} Kd5 {[%emt 0:00:08]} 40. Bxf4 {[%emt 0:00:27]} Bxf4 {[%emt 0:00:31]} 41. Nxf4+ {[%emt 0:02:08]} ({White should try} 41. h4 $14) 41... gxf4 $11 {[%emt 0:00:05] The position is equal.} 42. Ke2 {[%emt 0:00:05] And now Kf3 would win.} Ke4 {[%emt 0:04:01]} 43. Re6+ {[%emt 0:01:33]} Kxd4 {[%emt 0:00:08]} 44. Kf3 {[%emt 0:00:27]} Rh7 {[%emt 0:17:46] Weighted Error Value: White=0.10 (very precise) /Black=0.11 (very precise)} 1/2-1/2

[Event "5th Sharjah Masters 2022"]
[Site "Sharjah"]
[Date "2022.05.23"]
[Round "3.10"]
[White "Van Foreest, Lucas"]
[Black "Chigaev, Maksim"]
[Result "1/2-1/2"]
[ECO "E35"]
[WhiteElo "2572"]
[BlackElo "2631"]
[Annotator "TA"]
[PlyCount "99"]
[EventDate "2022.05.21"]
[EventType "swiss"]
[EventCountry "UAE"]
[SourceTitle "playchess.com"]
[Source "ChessBase"]
[SourceQuality "1"]
[TimeControl "5400+30"]

{[%evp 9,99,17,27,22,9,19,13,0,0,20,8,19,5,18,23,16,16,8,16,16,7,16,17,14,31,33,66,77,66,41,52,42,98,49,112,121,120,122,129,131,125,138,131,0,31,27,177,162,152,164,179,185,175,186,184,195,179,186,168,190,189,184,265,93,84,86,86,46,46,40,49,31,43,38,153,98,164,151,106,0,0,0,0,0,0,0,0,0,0,0,0,0]} 1. d4 {[%emt 0:00:07]} Nf6 {[%emt 0:00:10]} 2. c4 {[%emt 0:00:08]} e6 {[%emt 0:00:06]} 3. Nc3 {[%emt 0:00:16]} Bb4 {[%emt 0:00:08]} 4. Qc2 {[%emt 0:00:06]} d5 {[%emt 0:00:09]} 5. cxd5 {[%emt 0:00:07]} exd5 {[%emt 0:00:08]} 6. Bf4 {[%emt 0:00:07] E35: Nimzo-Indian: Classical: 4...d5 5 cxd5 exd5.} c5 {[%emt 0:00:32]} 7. dxc5 {[%emt 0:02:38]} O-O {[%emt 0:02:02]} 8. e3 {[%emt 0:00:32]} Nc6 {[%emt 0:00:11]} 9. Nf3 {[%emt 0:02:52]} d4 {[%emt 0:00:39][%mdl 64] Pin} 10. O-O-O {[%emt 0:00:30][%cal Rf3d4]} Bxc5 {[%emt 0:00:08]} 11. exd4 {[%emt 0:00:28]} Bd6 {[%emt 0:02:35]} 12. Bxd6 {[%emt 0:01:17]} Qxd6 {[%emt 0:00:19]} 13. a3 {[%emt 0:00:07] Prevents Nb4.} Bg4 {[%emt 0:13:05]} 14. Kb1 {[%emt 0:04:20]} Rac8 {[%emt 0:02:02]} 15. d5 {[%emt 0:03:14]} Ne7 {[%emt 0:02:17][%cal Re7d5]} 16. Qb3 {[%emt 0:09:08] [#]} a6 $146 {[%emt 0:03:18]} ({Predecessor:} 16... Rfd8 17. Bd3 Nexd5 18. Nxd5 Nxd5 19. Be4 Be6 20. Rd4 Nf6 21. Rxd6 Bxb3 22. Rxd8+ Rxd8 23. Bxb7 {1-0 (56) Kuljasevic,D (2538)-Brkic,A (2596) Pozega 2018}) 17. Bd3 {[%emt 0:03:51]} (17. Qxb7 $2 Rxc3 $1 {[%mdl 512]} 18. Qb4 (18. bxc3 $2 Rb8 $19) 18... Rc5 $19) 17... Ng6 {[%emt 0:02:05]} 18. Bxg6 {[%emt 0:03:54]} (18. Qxb7 $2 Rxc3 $1 {[%mdl 512]} 19. Qxa6 (19. bxc3 $2 Rb8 $19) 19... Qxa6 20. Bxa6 Rb8 $19) 18... hxg6 {[%emt 0:03:58]} 19. Rhe1 {[%emt 0:06:46]} (19. Qxb7 $2 Rxc3 $1 {[%mdl 512]} 20. Qb4 (20. bxc3 $2 Rb8 $19) 20... Rc5 $19) 19... b5 {[%emt 0:04:14]} 20. h3 {[%emt 0:02:14]} Bf5+ {[%emt 0:06:44]} (20... Bxf3 $14 21. gxf3 Rfd8) 21. Ka1 {[%emt 0:00:46]} ({Better is} 21. Ka2 $16) 21... Nd7 {[%emt 0:00:25]} (21... Rfe8 $14) 22. Qb4 $1 $16 {[%emt 0:04:04]} Nc5 {[%emt 0:20:16]} 23. Ng5 {[%emt 0:03:33] White threatens Qh4 and mate.} f6 {[%emt 0:04:36]} 24. Ne6 $36 {[%emt 0:00:49][%mdl 2048] Keeping Black busy. Pair of Knights!} Bc2 {[%emt 0:00:32]} 25. Nxf8 {[%emt 0:05:19]} Kxf8 {[%emt 0:02:49] [#]} 26. Re6 {[%emt 0:04:08]} a5 $1 $14 {[%emt 0:01:49]} 27. Qh4 {[%emt 0:07:44]} Nxe6 {[%emt 0:01:00]} (27... Qd7 $1 $11 {and Black is okay.} 28. Rde1 (28. Qh8+ Kf7 $11) 28... Kg8) 28. Qh8+ $18 {[%emt 0:03:26][%mdl 64] Skewer} Ke7 {[%emt 0:00:08] ( -> ...Rxc3)} 29. Qxc8 {[%emt 0:00:06]} Bxd1 {[%emt 0:00:04] [#]} 30. Qb7+ $1 {[%emt 0:07:24]} (30. dxe6 $6 b4 31. Nb5 Qxe6 32. Qc7+ Qd7 $14) (30. Qxe6+ $6 Qxe6 31. dxe6 Bb3 $16) 30... Nc7 {[%emt 0:03:34][%cal Od6d7]} 31. Nxb5 {[%emt 0:00:59]} (31. Nxd1 Qc5 $16) 31... Qc5 {[%emt 0:00:08] aiming for ...Qc1+.} 32. d6+ {[%emt 0:01:04][%mdl 64] Pin} ({Much less strong is} 32. Qxc7+ $6 Qxc7 33. Nxc7 Bb3 $14) ({Worse is} 32. Nxc7 Qc1+ 33. Ka2 Qc4+ 34. Ka1 Qc1+ 35. Ka2 Qc4+ 36. Ka1 Qc1+ $11) 32... Kd7 {[%emt 0:00:01]} 33. Qxc7+ {[%emt 0:00:15]} ({And not} 33. dxc7 Qc1+ 34. Ka2 Qc4+ 35. Ka1 Qc1+ 36. Ka2 Qc4+ 37. Ka1 Qc1+ $11) 33... Qxc7 {[%emt 0:00:02]} 34. dxc7 {[%emt 0:00:14][%mdl 4096] Endgame KB-KN} Be2 {[%emt 0:00:11]} 35. Nd4 {[%emt 0:00:58]} Bf1 {[%emt 0:00:41] [#]} (35... Bc4 $142 36. g3 Kxc7) 36. g3 $2 {[%emt 0:03:03]} (36. Nb3 $1 $18 {is the precise move to win.}) 36... Kxc7 $16 {[%emt 0:03:35]} 37. h4 {[%emt 0:00:52]} Kd6 {[%emt 0:01:00]} 38. Kb1 {[%emt 0:01:56]} Kd5 {[%emt 0:01:13]} 39. Nf3 {[%emt 0:01:02]} Be2 {[%emt 0:01:37]} 40. Ne1 {[%emt 0:00:42]} Kd4 {[%emt 0:04:01]} 41. Kc2 {[%emt 0:00:06]} a4 {[%emt 0:00:35]} ({Black should try} 41... Bg4 $14) 42. b3 {[%emt 0:04:30]} (42. b4 $142) 42... axb3+ {[%emt 0:03:06]} (42... Bb5 $16) 43. Kxb3 $18 {[%emt 0:00:01]} Bd1+ {[%emt 0:00:30]} 44. Kb2 {[%emt 0:00:25]} ({White has to play} 44. Kb4 $16) 44... Ba4 $1 $11 {[%emt 0:00:19] The position is equal.} 45. Kc1 {[%emt 0:01:35]} Kc3 $1 {[%emt 0:00:07]} 46. Ng2 {[%emt 0:00:02]} g5 {[%emt 0:07:35] Inhibits Nf4.} 47. h5 {[%emt 0:01:36]} Be8 {[%emt 0:00:05]} 48. g4 {[%emt 0:01:10] And now Ne3 would win.} f5 $1 {[%emt 0:00:02]} 49. gxf5 {[%emt 0:02:18][%cal Of5f6] Threatens to win with f6!} Bxh5 {[%emt 0:00:25]} 50. Ne1 {[%emt 0:01:04] Black escapes into a draw.  Weighted Error Value: White=0.17 (very precise) /Black=0.16 (very precise)} 1/2-1/2

[Event "5th Sharjah Masters 2022"]
[Site "Sharjah"]
[Date "2022.05.23"]
[Round "3.11"]
[White "Yilmaz, Mustafa"]
[Black "Msellek, Ilyass"]
[Result "1-0"]
[ECO "D37"]
[WhiteElo "2631"]
[BlackElo "2411"]
[Annotator "TA"]
[PlyCount "127"]
[EventDate "2022.05.21"]
[EventType "swiss"]
[EventCountry "UAE"]
[SourceTitle "playchess.com"]
[Source "ChessBase"]
[SourceQuality "1"]
[TimeControl "5400+30"]

{[%evp 9,127,32,33,27,30,25,35,34,34,25,33,43,44,24,35,0,37,30,25,24,51,57,105,57,111,74,91,40,93,95,148,147,145,101,104,106,112,85,146,133,144,97,74,93,85,93,112,97,104,100,109,95,88,88,81,94,101,102,83,89,136,145,146,0,52,16,60,60,87,100,88,50,163,140,146,160,195,195,195,191,191,149,150,142,167,151,183,151,136,0,189,179,189,184,183,170,162,139,222,230,241,228,230,270,264,256,256,256,364,346,402,399,9001,6500,6083,1922,29982,29983,29982,29981]} 1. d4 {[%emt 0:00:03]} d5 {[%emt 0:00:18]} 2. c4 {[%emt 0:00:06]} e6 {[%emt 0:00:05]} 3. Nf3 {[%emt 0:00:46]} Nf6 {[%emt 0:00:20]} 4. Nc3 {[%emt 0:00:06]} a6 {[%emt 0:00:41]} 5. cxd5 {[%emt 0:00:57]} exd5 {[%emt 0:00:07]} 6. Bg5 {[%emt 0:00:08] D37: Queen's Gambit Declined: 5 Bf4.} Be6 {[%emt 0:00:48]} 7. e3 {[%emt 0:00:59]} Nbd7 {[%emt 0:00:16]} 8. Bd3 {[%emt 0:00:20] White is slightly better.} h6 {[%emt 0:00:52]} 9. Bf4 {[%emt 0:05:16]} g5 {[%emt 0:02:18]} 10. Bg3 {[%emt 0:00:50]} Nh5 {[%emt 0:00:25]} 11. Be5 {[%emt 0:00:58]} Ng7 {[%emt 0:00:18]} 12. Bg3 {[%emt 0:01:05]} Nh5 $1 {[%emt 0:00:10]} 13. Qb3 {[%emt 0:03:29]} Nxg3 {[%emt 0:05:40]} 14. hxg3 {[%emt 0:00:32]} b5 {[%emt 0:01:13]} 15. Qc2 $36 {[%emt 0:02:56][%mdl 2048] [#] White is more active.} ({Wrong is} 15. Nxd5 $2 c6 16. e4 Bg7 $17) 15... c5 $146 {[%emt 0:13:39]} (15... Bg7 $14 {deserves consideration.}) ({Predecessor:} 15... Bg7 16. Ne2 Rc8 17. Qc6 O-O 18. Rc1 Nb8 19. Qc2 Nd7 20. O-O c5 21. dxc5 Nxc5 {½-½ (48) Karjakin,S (2773)-Caruana,F (2822) Saint Louis 2018}) 16. dxc5 {[%emt 0:06:43] White is more active.} (16. Bf5 $1 $16 {[%cal Rf5e6] Hoping for Bxe6.} Qf6 17. e4) 16... Bxc5 {[%emt 0:01:43]} (16... Nxc5 $14 17. Nd4 Bg7) 17. O-O {[%emt 0:05:35]} Rc8 {[%emt 0:08:26]} 18. Qd2 {[%emt 0:16:59]} (18. a4 $16) 18... Nb6 {[%emt 0:15:32]} (18... Qf6 $14) 19. a4 $1 $16 {[%emt 0:07:33]} b4 {[%emt 0:28:21]} (19... Nc4 $142 20. Bxc4 bxc4) 20. Bxa6 {[%emt 0:05:45]} bxc3 {[%emt 0:04:08]} 21. Qxc3 {[%emt 0:00:10]} d4 {[%emt 0:00:40]} 22. exd4 {[%emt 0:04:11]} Nd5 {[%emt 0:00:05]} 23. Qc1 {[%emt 0:02:35]} Bb4 {[%emt 0:01:02]} 24. Bxc8 {[%emt 0:00:15]} Qxc8 {[%emt 0:02:23]} 25. Qxc8+ {[%emt 0:01:27]} ({Better is} 25. Ne5 $1) 25... Bxc8 {[%emt 0:00:03]} 26. Rfc1 {[%emt 0:00:17]} Ba6 {[%emt 0:02:35]} 27. Ne5 {[%emt 0:02:15][%cal Oe5d3]} Ke7 {[%emt 0:06:12]} 28. Rc6 {[%emt 0:07:20]} Bb7 {[%emt 0:00:43]} 29. Rc4 {[%emt 0:00:02]} Ba6 {[%emt 0:03:10]} 30. Nc6+ {[%emt 0:02:06]} Kd6 {[%emt 0:00:03]} 31. Rxb4 {[%emt 0:00:05]} Kxc6 {[%emt 0:00:06]} 32. Rb3 {[%emt 0:00:03]} f6 {[%emt 0:00:33]} 33. Rc1+ {[%emt 0:03:36]} Kd6 {[%emt 0:00:02]} 34. Rc5 {[%emt 0:00:08]} Re8 {[%emt 0:00:52]} (34... Be2 $142) 35. Ra5 $1 {[%emt 0:07:22]} Bc4 {[%emt 0:00:08]} 36. Rf3 {[%emt 0:01:54]} (36. Rb7 $16) 36... Re4 {[%emt 0:00:59]} (36... Re1+ $11 37. Kh2 Rd1) 37. Ra8 {[%emt 0:05:04] aiming for b3.} Rxd4 {[%emt 0:00:34]} 38. a5 $1 {[%emt 0:00:20]} Rd1+ {[%emt 0:01:45]} 39. Kh2 {[%emt 0:00:02]} Ra1 {[%emt 0:00:43]} 40. g4 {[%emt 0:05:38]} Nf4 {[%emt 0:00:17]} (40... Ra2 $14) 41. Rd8+ $18 {[%emt 0:00:43]} Ke7 {[%emt 0:01:37]} 42. Rd4 {[%emt 0:00:18]} Be6 {[%emt 0:00:36] [#]} 43. Ra3 {[%emt 0:04:07]} Rxa3 {[%emt 0:00:10]} 44. bxa3 {[%emt 0:00:02] And now a6 would win.} Bc8 {[%emt 0:00:28]} (44... Bxg4 $2 45. g3 Nd5 46. Rxg4 $18) 45. Ra4 {[%emt 0:00:24]} Ba6 {[%emt 0:00:21]} 46. Rb4 {[%emt 0:00:06] Strongly threatening Rb6.} Nd5 {[%emt 0:00:11] Inhibits Rb6.} 47. Rb8 {[%emt 0:00:02]} Kd6 {[%emt 0:00:57]} 48. Rh8 {[%emt 0:01:04]} Kc5 {[%emt 0:00:26]} 49. Rb8 {[%emt 0:00:46]} ({Much less strong is} 49. Rxh6 Kb5 $14) ({White should play} 49. Rd8 $16) 49... Kc6 $2 {[%emt 0:00:53]} (49... Kd6 $1 $11) 50. f3 {[%emt 0:00:22]} Kc7 {[%emt 0:00:10]} 51. Rb1 {[%emt 0:01:31]} Kc6 {[%emt 0:01:01]} 52. Kg3 {[%emt 0:00:08]} Bd3 {[%emt 0:00:48]} 53. Rc1+ {[%emt 0:00:55]} Kd6 {[%emt 0:00:36]} (53... Kb7 $16 {is a better defense.} 54. Rc5 Nc7) 54. Kf2 {[%emt 0:00:20]} Ba6 {[%emt 0:00:21] [#]} 55. g3 $1 {[%emt 0:00:23]} ({Don't take} 55. Rh1 $6 Kc5 56. Rxh6 Kb5) 55... Kd7 {[%emt 0:00:34]} 56. Rh1 {[%emt 0:00:45]} Kc6 {[%emt 0:00:08]} 57. Rxh6 {[%emt 0:00:14]} Kb5 {[%emt 0:00:05]} 58. f4 {[%emt 0:00:38]} gxf4 {[%emt 0:01:10]} (58... Kxa5 {was called for.} 59. fxg5 fxg5) 59. gxf4 {[%emt 0:00:01]} Nxf4 {[%emt 0:00:38]} 60. Rxf6 {[%emt 0:00:09]} Nd3+ {[%emt 0:00:33]} (60... Nd5) 61. Ke3 {[%emt 0:00:13]} Nc5 {[%emt 0:00:28]} 62. g5 {[%emt 0:00:58][%cal Bg4g5,Bg5g6][%mdl 32] White threatens g6 and mate.} Bc8 {[%emt 0:00:05]} 63. g6 {[%emt 0:01:09]} Be6 {[%emt 0:00:38]} 64. a6 {[%emt 0:00:15] Weighted Error Value: White=0.13 (very precise) /Black=0.37} 1-0

[Event "5th Sharjah Masters 2022"]
[Site "Sharjah"]
[Date "2022.05.23"]
[Round "3.12"]
[White "Aravindh, Chithambaram VR."]
[Black "Ponkratov, Pavel"]
[Result "1/2-1/2"]
[ECO "D00"]
[WhiteElo "2606"]
[BlackElo "2624"]
[Annotator "TA"]
[PlyCount "36"]
[EventDate "2022.05.21"]
[EventType "swiss"]
[EventCountry "UAE"]
[SourceTitle "playchess.com"]
[Source "ChessBase"]
[SourceQuality "1"]
[TimeControl "5400+30"]

{[%evp 9,36,0,38,32,8,1,8,0,16,4,31,-4,1,0,10,16,5,-28,-26,-15,0,4,0,5,9,7,8,15,11]} 1. d4 {[%emt 0:00:04]} Nf6 {[%emt 0:00:05]} 2. Nc3 {[%emt 0:00:12]} d5 {[%emt 0:00:59]} 3. Bf4 {[%emt 0:00:09]} a6 {[%emt 0:04:30]} 4. e3 {[%emt 0:00:17]} e6 {[%emt 0:00:13]} 5. g4 {[%emt 0:01:07][%cal Bg2g4,Bg4g5][%mdl 32]} Bd6 {[%emt 0:10:36]} 6. g5 {[%emt 0:04:27] D00: 1 d4 d5: Unusual lines.} Bxf4 {[%emt 0:01:42]} 7. exf4 {[%emt 0:00:14] [#]} Ng8 $146 {[%emt 0:01:40]} ({Predecessor:} 7... Ne4 8. Nxe4 dxe4 9. Bg2 c5 10. dxc5 Qa5+ 11. Qd2 Qxc5 12. Bxe4 O-O 13. O-O-O Nc6 {1-0 (32) Gelman,A (2403)-Badelka,O (2433) Chess.com INT 2021}) 8. Nf3 {[%emt 0:08:30]} Nc6 {[%emt 0:04:08]} 9. Qd2 {[%emt 0:05:57]} Qd6 {[%emt 0:01:09]} 10. Ne2 {[%emt 0:26:09]} Bd7 {[%emt 0:02:15]} 11. h4 {[%emt 0:06:00]} f6 {[%emt 0:05:02]} (11... h6 {with more complications.} 12. Ne5 f6 13. Nxd7 Kxd7 14. Bh3 hxg5 15. hxg5 Nge7) 12. O-O-O {[%emt 0:06:45]} O-O-O {[%emt 0:00:22]} 13. Ne1 {[%emt 0:04:04]} Nge7 {[%emt 0:02:10]} 14. Nd3 {[%emt 0:01:46]} Kb8 {[%emt 0:01:03] The position is equal.} 15. Bh3 {[%emt 0:04:20]} b6 {[%emt 0:13:59]} 16. Kb1 {[%emt 0:02:28]} Bc8 {[%emt 0:01:49]} 17. c3 {[%emt 0:07:02]} Rdf8 {[%emt 0:09:33]} 18. Rde1 {[%emt 0:01:27]} a5 {[%emt 0:04:30] A rather calm draw.  Weighted Error Value: White=0.06 (flawless) /Black=0.10 (very precise)} 1/2-1/2